Cogmind - Beta 13 @@@ ROGUE MODE // 2024.04.29 @ 18:45:37 Player: Some Pennies Result: Destroyed by as-48714 with Assembled Rifle Performance ------------- Evolutions (0) 0 Regions Visited (2) 400 Robots Destroyed (25) 125 Value Destroyed (548) 548 Prototype IDs (0) 0 Alien Tech Used (0) 0 Bonus (0) 0 TOTAL SCORE: 1073 Bonus ------- None Cogmind --------- Core Integrity 0/250 Matter 284/300 Energy 125/125 System Corruption 0% Temperature Cool (0) Movement Core (500) Ox9 Location -10/Mines Parts ------- > --- POWER (1) -------- Light Ion Engine > --- PROPULSION (2) --- (None) > --- UTILITY (2) ------ Large Storage Unit Structural Scanner > --- WEAPON (2) ------- Assault Rifle Light Cannon > --- INVENTORY (15) --- Light Ion Engine Light Ion Engine Light Ion Engine Seismic Detector ECM Suite Hacking Suite EM Pulse Gun Assault Rifle Light Assault Rifle Light Assault Rifle Datajack Welding Torch Peak State ------------ > --- POWER ------------ Ion Engine > --- PROPULSION ------- Light Treads Light Treads > --- UTILITY ---------- Small Storage Unit Improved Terrain Scanner > --- WEAPON ----------- Medium Laser Assault Rifle > --- INVENTORY -------- (None) [Rating: 9] Favorites ----------- Power Ion Engine Engine Ion Engine Propulsion Light Treads Treads Light Treads Utility Structural Scanner Device Structural Scanner Storage Large Storage Unit Weapon Assault Rifle Energy Gun Medium Laser Ballistic Gun Assault Rifle Ballistic Cannon Light Cannon Launcher Grenade Launcher Build | -11 -10 -10 ------- Run | Yrd Mat Min Slots Evolved . | . . . Power . | . . . Propulsion . | . . . Utility . | . . . Weapon . | . . . Parts Attached 21 | 8 8 5 Power 3 | 1 2 . Engine 3 | 1 2 . Core . | . . . Reactor . | . . . Propulsion 2 | 2 . . Treads 2 | 2 . . Leg . | . . . Wheel . | . . . Hover . | . . . Flight . | . . . Utility 6 | 3 3 . Device 3 | 2 1 . Storage 3 | 1 2 . Processor . | . . . Hackware . | . . . Protection . | . . . Artifact . | . . . Weapon 10 | 2 3 5 Energy Gun 1 | 1 . . Energy Cannon . | . . . Ballistic Gun 4 | 1 2 1 Ballistic Cannon 2 | . 1 1 Launcher 3 | . . 3 Special Weapon . | . . . Impact Weapon . | . . . Slashing Weapon . | . . . Piercing Weapon . | . . . Special Melee Weapon . | . . . Unidentified Prototypes . | . . . Parts Lost 6 | . 1 5 Power . | . . . Propulsion 2 | . . 2 Utility . | . . . Weapon 4 | . 1 3 Highest Loss Streak 5 | . 1 5 To Critical Strikes . | . . . Average Slot Usage (%) 95 | . 99 82 Engine 14 | . 14 14 Treads 24 | . 28 11 Device 14 | . 14 14 Storage 13 | . 13 14 Energy Gun 3 | . 4 . Ballistic Gun 21 | . 23 14 Ballistic Cannon 2 | . . 8 Launcher 1 | . . 5 Naked Turns . | . . . Heaviest Build 31 | 15 31 29 Greatest Support 40 | 40 40 40 Greatest Overweight (x) 9 | . . 9 Average Overweight (x) . | . . 3 Largest Inventory Capacity 15 | 8 15 15 Average Capacity 11 | 7 11 15 Most Carried 15 | 4 13 15 Average Carried 7 | 1 7 12 Final Capacity 15 | 5 15 15 Final Carried 13 | 4 13 12 Class Distribution -------------------- 100% | Mutant Dominant Class ---------------- Mutant | -10/Materials Mutant | -10/Mines Resources | -11 -10 -10 ----------- Run | Yrd Mat Min Matter Collected 876 | 316 274 286 Remotely . | . . . Salvage Created 635 | 110 422 103 Parts 51 | 9 37 5 Haulers Intercepted . | . . . Recyclers Shooed . | . . . Parts Field Recycled . | . . . Retrieved Matter . | . . . Parts Self-Destructed . | . . . Prevented . | . . . Kills | -11 -10 -10 ------- Run | Yrd Mat Min Combat Hostiles Destroyed 21 | . 9 12 Guns 8 | . 7 1 Cannons 4 | . 2 2 AOE 9 | . . 9 Classes Destroyed 10 | 3 5 2 Worker 2 | 1 1 . Builder 3 | . 2 1 Tunneler 2 | 2 . . Recycler 1 | 1 . . Operator 1 | . 1 . Watcher 3 | . 3 . Swarmer 3 | . 3 . Grunt 8 | . 6 2 Demolisher 2 | . . 2 Assembled 8 | . . 8 Best Kill Streak 10 | 2 4 10 Combat Bots Only 9 | . 4 9 Max Kills in Single Turn 2 | 1 1 2 Gunslinging . | . . . Exploded 2 | . . 2 Melee . | . . . Uniques/NPCs Destroyed . | . . . Combat | -11 -10 -10 -------- Run | Yrd Mat Min Hostile Shots Fired 98 | . 57 41 Missed 27 | . 13 14 Damage Taken 1279 | . 506 773 Core 257 | . 71 186 Absorbed by Shields . | . . . Core Remaining (%) 100 | 100 . . Volleys Fired 87 | 12 47 28 Largest 2 | 2 2 2 Hottest 70 | 70 70 55 Shots Fired 170 | 24 94 52 Gun 138 | 24 86 28 Cannon 17 | . 8 9 Launcher 15 | . . 15 Special . | . . . Kinetic 117 | 12 68 37 Thermal 38 | 12 26 . Explosive 15 | . . 15 Electromagnetic . | . . . Robot Hit Streak 11 | 5 11 10 Robot Miss Streak 3 | 1 3 3 Penetration Max . | . . . Secondary Targets . | . . . Shots Hit Robots 113 | 17 64 32 Core Hits 60 | 5 25 30 Critical Kills . | . . . Critical Parts Destroyed . | . . . Critical Strikes . | . . . Melee Attacks . | . . . Impact . | . . . Slashing . | . . . Piercing . | . . . Sneak Attacks . | . . . Combat Hostiles . | . . . Follow-up Attacks . | . . . Damage Inflicted 2064 | 227 866 971 Guns 1193 | 227 755 211 Cannons 236 | . 111 125 Explosions 635 | . . 635 Melee . | . . . Ramming . | . . . Kinetic 1090 | 115 639 336 Thermal 339 | 112 227 . Explosive 635 | . . 635 Electromagnetic . | . . . Impact . | . . . Slashing . | . . . Piercing . | . . . Highest Corruption . | . . . Average Corruption . | . . . Corruption Purged . | . . . Corruption Blocked . | . . . Overload Shots . | . . . Overflow Damage 31 | . 14 17 Projectiles 31 | . 14 17 Explosions . | . . . Melee . | . . . Knockbacks 4 | . 3 1 Impact . | . . . Kinetic 4 | . 3 1 Secondary . | . . . Self-Inflicted Damage 33 | . . 33 Shots 2 | . . 2 Rammed . | . . . Targets Rammed . | . . . Kicked . | . . . Crushed . | . . . Highest Temperature 339 | 36 339 16 Average Temperature 88 | 12 122 7 Received Heat Transfer 266 | . 222 44 Siege Activations . | . . . Robots Corrupted . | . . . Combat Hostiles . | . . . Parts Fried . | . . . Impact Corruptions . | . . . Robots Melted . | . . . Combat Hostiles . | . . . Parts Melted 4 | 1 3 . Heat Transferred 999 | 333 666 . Parts Sabotaged . | . . . Parts Stolen . | . . . Parts Stripped . | . . . Power Chain Reactions . | . . . Alert | -11 -10 -10 ------- Run | Yrd Mat Min Peak Influence 218 | 20 218 122 Initial 13 | . 13 1 Average 66 | 8 72 95 Maximum Alert Level 1 | . 1 . Low Security (%) 98 | 100 97 100 Level 1 1 | . 2 . Level 2 . | . . . Level 3 . | . . . Level 4 . | . . . Level 5 . | . . . High Security . | . . . Max Security . | . . . Squads Dispatched 2 | . 2 . Investigation . | . . . Extermination . | . . . Reinforcement 2 | . 2 . Assault . | . . . Garrison . | . . . Intercept . | . . . Searches Triggered . | . . . Construction Impeded . | . . . Haulers Reinforced . | . . . Active Scanning Responses . | . . . Cargo Convoy Interrupts . | . . . Stealth | -11 -10 -10 --------- Run | Yrd Mat Min Distress Signals . | . . . Communications Jammed . | . . . Distress Signals . | . . . Times Spotted 33 | . 19 14 Peak Tracking Total 5 | . 3 5 Tactical Retreats 1 | . . 1 Traps | -11 -10 -10 ------- Run | Yrd Mat Min Traps Triggered . | . . . Indirectly . | . . . Trap Hack Attempts . | . . . Triggered . | . . . Disarmed . | . . . Reprogrammed . | . . . Reused . | . . . Traps Extracted . | . . . Installed . | . . . Triggered . | . . . Machines | -11 -10 -10 ---------- Run | Yrd Mat Min Machines Disabled . | . . . Max in Single Turn . | . . . Machines Repaired . | . . . Machines Dismantled . | . . . Machines Sabotaged . | . . . Overloaded Fab Kills . | . . . Hacking | -11 -10 -10 --------- Run | Yrd Mat Min Machines Accessed 6 | . 6 . Terminals 4 | . 4 . Fabricators . | . . . Repair Stations . | . . . Recycling Units 2 | . 2 . Scanalyzers . | . . . Garrison Access . | . . . Total Hacks 15 | . 15 . Successful 8 | . 8 . Failed 7 | . 7 . Catastrophic 1 | . 1 . Database Lockouts . | . . . Manual 12 | . 12 . Terminals 11 | . 11 . Fabricators . | . . . Repair Stations . | . . . Recycling Units 4 | . 4 . Scanalyzers . | . . . Garrison Access . | . . . Terminal Hacks 4 | . 4 . Robot Analysis 3 | . 3 . Locate Traps 1 | . 1 . Fabricator Hacks . | . . . Repair Station Hacks . | . . . Recycling Unit Hacks 1 | . 1 . Report Inventory 1 | . 1 . Scanalyzer . | . . . Garrison Access Hacks . | . . . Unauthorized Hacks 3 | . 3 . Terminals . | . . . Fabricators . | . . . Repair Stations . | . . . Recycling Units 3 | . 3 . Monitor 1 | . 1 . Mask 2 | . 2 . Scanalyzers . | . . . Garrison Access . | . . . Data Cores Recovered . | . . . Used . | . . . Hacking Detections 4 | . 4 . Full Trace Events . | . . . Feedback Events . | . . . Feedback Blocked . | . . . Robot Schematics Acquired . | . . . Robots Built . | . . . Authchips . | . . . Time . | . . . Total Robot Build Rating . | . . . Part Schematics Acquired . | . . . Parts Built . | . . . Authchips . | . . . Time . | . . . Total Part Build Rating . | . . . Parts Repaired . | . . . Time . | . . . Parts Recycled . | . . . Recycled Matter . | . . . Retrieved Matter . | . . . Retrieved Components . | . . . Parts Scanalyzed . | . . . Part Schematics Acquired . | . . . Parts Damaged . | . . . Bothacking | -11 -10 -10 ------------ Run | Yrd Mat Min Used RIF Installer . | . . . Robots Hacked . | . . . Non-combat . | . . . Combat . | . . . Robot Hacks Applied . | . . . Relay Couplers Released . | . . . Fabnet Peak Effective % . | . . . Robots Rewired . | . . . Allies Hacked . | . . . Hacks Repelled . | . . . Allies | -11 -10 -10 -------- Run | Yrd Mat Min Total Allies . | . . . Largest Group . | . . . Highest-Rated Group . | . . . Highest-Rated Ally . | . . . Total Orders . | . . . Ally Attacks . | . . . Total Damage . | . . . Kills . | . . . Allies Corrupted . | . . . Allies Melted . | . . . Intel | -11 -10 -10 ------- Run | Yrd Mat Min Robot Analysis Total 3 | . 3 . Derelict Logs Recovered 1 | . . 1 Drone Launches . | . . . Drone Recoveries . | . . . Exploration | -11 -10 -10 ------------- Run | Yrd Mat Min Turns Passed 2208 | 343 1435 430 Spaces Moved 1006 | 132 763 111 Core 50 | 4 . 46 Treads 956 | 128 763 65 Legs . | . . . Wheels . | . . . Hover . | . . . Flight . | . . . Fastest Speed 50 | 50 160 160 Average Speed 175 | 156 160 300 Slowest Speed 500 | 160 160 500 Overloaded Moves . | . . . Propulsion Burnouts . | . . . Robots Hopped . | . . . Cave-ins Triggered . | . . . Exploration Rate (%) 37 | 9 66 36 Regions Visited 2 Branch Regions 1 Pre-discovered Areas . | . . . Known Exits Taken . | . . . Unknown Exits Taken 2 | 1 1 . Scrap Searched 2 | . . 2 Spaces Dug 6 | . . 6 Terrain Destroyed 83 | . . 83 Melee . | . . . Projectile . | . . . AOE 83 | . . 83 Terrain Rammed . | . . . Walls Destroyed . | . . . Machines Disabled . | . . . Actions | -11 -10 -10 --------- Run | Yrd Mat Min Total 1285 | 244 885 156 Wait 132 | 82 40 10 Move 1004 | 131 762 111 Hop . | . . . Pick Up 32 | 11 19 2 Fast Attach . | . . . Attach 11 | 7 1 3 Detach . | . . . Swap 10 | 1 7 2 Drop 9 | . 9 . Fire 87 | 12 47 28 Melee . | . . . Ram . | . . . Kick . | . . . Crush . | . . . Escape Stasis . | . . . Rewire . | . . . Trap . | . . . Miscellaneous . | . . . Route ------- -11/Scrapyard -10/Materials (discovered 4 exits: [*Mat x2] / [*Min x2]) -10/Mines History --------- Turn | Location | Event 28 | -11/Scrapyard | Discovered new exit (range 15) 344 | -11/Scrapyard | Entered Materials 344 | -10/Materials | Discovered new exit (range 16) 345 | -10/Materials | Build established: Mutant 622 | -10/Materials | Discovered new exit (range 10) 941 | -10/Materials | Discovered new exit (range 15) 1059 | -10/Materials | Discovered new exit (range 7) 1779 | -10/Materials | Entered Mines 1780 | -10/Mines | Assembled infested the area 1786 | -10/Mines | Received a Rocket Launcher from a helpful Derelict 1872 | -10/Mines | Destroyed 9 combat bots 1941 | -10/Mines | Core integrity fell below 50% 1951 | -10/Mines | Core integrity fell below 20% 1977 | -10/Mines | Lost 5 parts (2n3w) 2209 | -10/Mines | Destroyed by as-48714 with Assembled Rifle Last Messages --------------- 02020_ K-01 Serf collects debris. 02030_ The unstable cave ceiling collapses. 02031_ K-01 Serf collects debris. 02037_ The unstable cave ceiling collapses. 02045_ K-01 Serf collects debris. 02074_ as-15944 sneak attacks. 02074_ K-01 Serf destroyed. 02076_ K-01 Serf collects debris. 02078_ as-15944 sneak attacks. 02078_ K-01 Serf destroyed. 02080_ Destroyed Asb. Hover Unit. 02080_ as-15944 destroyed. 02088_ The unstable cave ceiling collapses. 02103_ Acquired 12 matter. 02108_ Acquired 78 matter. 02178_ Acquired derelict log, extracted data. Data stored: Mines entrances (x2). 02179_ K-01 Serf collects debris. 02187_ K-01 Serf destroyed. 02208_ as-48714 knocked back. Map ----- +----------------------------------------------------+ | ?????????????????????????????????????????????????? | | ?????????????????????????????????????????????????? | | ?????????????????????????????????????????????????? | | ?????????????????????????????????????????????????? | | ?????????????????????????????????????????????????? | | ?????????????????????????????????????????????????? | | ?????????????????????????????????????????????????? | | ?????????????????????????????????????????????????# | | ?????????????????????????????????????????????????# | | ????????????????????????????????????????????????# | | ????????????????????????????????????????????????## | | ???????????????????????????????????????????????? | | ??????????????????????????????????????????????#### | | ??????????????????????????????????????????????#### | | ?????????????????????????????????????????????### | | ????????????????????????????????????????????#### | | ????????????????????????????????????????????### # | | ????????????????????????????????????????????## | | ????????????????????????????????????????????## | | ???????????????## ??????????????????????????## | | ??????????? ##### ## ?????????????????? #### | | ??????????? ##### ## ????????????????## ###### | | ??????????? ????????????????## # | | ???????????????? = ##### ????????## ## | | ??????????????????##=!%######???####?## | | ??????????????????##!=a @ ##???### ?## ## = | | ??????????????????### a ###??## # # # | | ??????????????????### ### ## # # | | ??????????????????## ### ## #### # ## | | ?????????????????? ??## ### ?##### # ### | | ??????????????## ? ## ##???? ??????### ##### | | ??????????????## ?? ### ##????? ######## ####? | | ??????????????### ??## ##????########## !##??? | | ??????????????### ???## ###????### ### ##??? | | ???????????????## ????## ###????## ##??? | | ???????????????#% ????## ####???## ##??? | | ??????????????? ????### ###???### #######??? | | ??????????????? ?????### ##???##### #######??? | | ?????????????????????## ##????#### ##???????? | | ???????????????????#### ! ##??????## #######??? | | ?????????????????###### ! ###??????## ###### | | ?????????????????#### ###??????## | | ????????????????### ##???????## !###### | | ???????????????#### ##???????##] #######??? | | ??????????????#### ###???????## !##???????? | | ?????????????##### ############ ######???? | | ?????????????### ############# ######???? | | ?????????????## ##### ## ##???? | | ?????????????## ### # # ### ##???? | | ?????????????### ### # ## #### ???? | +----------------------------------------------------+ Best States ------------- Heat Dissipation 25 Energy Generation 10 Energy Capacity 250 Matter Stores 300 Matter Capacity 300 Sight Range 16 Terrain Scan Range 16 Terrain Scan Density 10 Evasion (%) 40 Recoil Reduction 2 Item Schematics ----------------- None Robot Schematics ------------------ None Fabricated ------------ Nothing Alien Tech Used ----------------- None Achievements -------------- None Challenges ------------ None Game ------ Seed ResetSiegeBeamcaster Manual? 0 Play Time 00:30:04 Cumulative 28.3 hours Start 2024.04.29 @ 18:10:12 End 2024.04.29 @ 18:45:37 Sessions 1 Manual Loads 0 Difficulty Rogue Special Mode None Game No. 30 Rogue 25 Adventurer 5 Explorer 0 Win Type - Total 0 Types 0/0/0/0/0/0/0/0/0 Lore% 24 Gallery% 27 Achievement% 22 Wizard Run 0 Options --------- Layout 2 ASCII 0 Keyboard 0 Movement Mouse Keybinds 0 Fullscreen 2 Font 24/Smallcaps Map View 50x44 Zoom Use 0% Tactical HUD 1 Map Filters NONE Filters NONE Steam 1 RUN: df54931d-3ac2-4399-ae42-4db153a84a43